[Event "SVK-ch Open 2018"]
[Site "Banska Stiavnica"]
[Date "2018.07.09"]
[Round "3"]
[White "Bronis, Marian"]
[Black "Liska, Jaroslav"]
[Result "1-0"]
[ECO "D78"]
[WhiteElo "2101"]
[BlackElo "1914"]
[Annotator "NA"]
[PlyCount "145"]
[EventDate "2018.07.07"]
[EventType "swiss"]
[EventCountry "SVK"]
[SourceTitle "playchess.com"]
[Source "ChessBase"]
[SourceQuality "1"]
[TimeControl "40/5400+30:1800+30"]

1. d4 {[%emt 0:00:00]} d5 {[%emt 0:00:00]} 2. Nf3 {[%emt 0:01:00]} Nf6 {[%emt 0:00:00]} 3. g3 {[%emt 0:00:07]} g6 {[%emt 0:00:06]} 4. Bg2 {[%emt 0:00:30]} Bg7 {[%emt 0:00:07]} 5. c4 {[%emt 0:00:25]} c6 {[%emt 0:01:03]} 6. O-O {[%emt 0:00:38]} O-O {[%emt 0:00:06]} 7. Nc3 {[%emt 0:01:05]} Bf5 {[%emt 0:05:15]} 8. Ne5 {[%emt 0:09:24]} Ne4 {[%emt 0:05:42]} 9. cxd5 {[%emt 0:02:57]} Nxc3 {[%emt 0:08:29]} 10. bxc3 {[%emt 0:00:07]} cxd5 {[%emt 0:00:08]} 11. Qb3 {[%emt 0:00:48]} Nc6 $11 {[%emt 0:00:24]} 12. Bxd5 {[%emt 0:23:09]} Nxe5 {[%emt 0:04:41]} 13. dxe5 {[%emt 0:00:09]} Bxe5 {[%emt 0:01:33]} 14. Bh6 {[%emt 0:03:56]} Bg7 {[%emt 0:01:30]} 15. Bxg7 {[%emt 0:00:31]} Kxg7 {[%emt 0:00:10]} 16. Rfd1 {[%emt 0:00:25]} Qc7 {[%emt 0:01:23]} 17. Qxb7 {[%emt 0:10:43]} Qxc3 {[%emt 0:04:24]} 18. Rac1 {[%emt 0:05:05]} Qe5 {[%emt 0:05:21]} 19. Qc7 {[%emt 0:03:21]} Qxc7 {[%emt 0:01:52]} 20. Rxc7 {[%emt 0:00:05]} Rad8 {[%emt 0:01:31]} 21. Rxa7 {[%emt 0:00:30]} Be4 {[%emt 0:01:25]} 22. Bb3 {[%emt 0:00:28]} Rxd1+ {[%emt 0:00:42]} 23. Bxd1 {[%emt 0:00:04]} Rd8 {[%emt 0:01:27]} 24. Bb3 {[%emt 0:00:13]} e6 {[%emt 0:11:17]} 25. f3 {[%emt 0:10:56]} Bd5 {[%emt 0:04:39]} 26. Bxd5 {[%emt 0:00:26]} Rxd5 {[%emt 0:00:11]} 27. Kf2 {[%emt 0:00:43]} g5 {[%emt 0:00:19]} 28. a4 {[%emt 0:01:18]} h5 {[%emt 0:00:37]} 29. a5 {[%emt 0:01:06]} Rd2 {[%emt 0:00:38]} 30. a6 {[%emt 0:03:02]} Ra2 {[%emt 0:00:13]} 31. Ra8 {[%emt 0:00:15]} Ra1 {[%emt 0:01:02]} 32. Ke3 {[%emt 0:00:25]} Ra3+ {[%emt 0:01:07]} 33. Kd4 {[%emt 0:01:39]} Ra2 {[%emt 0:02:04]} 34. a7 {[%emt 0:02:13]} Kf6 {[%emt 0:01:23]} 35. Kc5 {[%emt 0:00:21]} h4 {[%emt 0:05:43]} 36. gxh4 {[%emt 0:03:22]} gxh4 {[%emt 0:00:20]} 37. Kd4 {[%emt 0:00:59]} Kf5 {[%emt 0:06:28]} 38. Ke3 {[%emt 0:00:30]} Ra3+ {[%emt 0:00:52]} 39. Kf2 {[%emt 0:00:05]} Ra2 {[%emt 0:01:20]} 40. Rh8 {[%emt 0:07:02]} Rxa7 {[%emt 0:00:39]} 41. Rxh4 {[%emt 0:30:06]} Ra8 {[%emt 0:33:33]} 42. Rg4 {[%emt 0:00:35]} Rh8 {[%emt 0:00:51]} 43. Kg3 {[%emt 0:00:21]} Ke5 {[%emt 0:02:01]} 44. Rg5+ {[%emt 0:04:56]} f5 {[%emt 0:02:37]} 45. e3 {[%emt 0:00:00]} Kf6 {[%emt 0:00:00]} 46. h4 {[%emt 0:00:00]} e5 {[%emt 0:00:00]} 47. e4 {[%emt 0:00:00]} fxe4 {[%emt 0:00:00]} 48. fxe4 {[%emt 0:00:00]} Re8 {[%emt 0:00:00]} 49. Kg4 {[%emt 0:00:00]} Ra8 {[%emt 0:00:00]} 50. h5 {[%emt 0:00:00]} Ra1 {[%emt 0:00:00]} 51. Rg6+ {[%emt 0:00:00]} Kf7 {[%emt 0:00:00]} 52. Kf5 {[%emt 0:00:00]} Ra8 {[%emt 0:00:00]} 53. Rb6 {[%emt 0:00:00]} Ra7 {[%emt 0:00:00]} 54. h6 {[%emt 0:00:00]} Kg8 {[%emt 0:05:16]} 55. Kxe5 {[%emt 0:00:00]} Kh7 {[%emt 0:00:25]} 56. Kf5 {[%emt 0:00:00]} Ra1 {[%emt 0:02:00]} 57. Rf6 {[%emt 0:00:00]} Rf1+ {[%emt 0:00:52]} 58. Ke6 {[%emt 0:00:00]} Re1 {[%emt 0:03:09]} 59. e5 {[%emt 0:00:00]} Re2 {[%emt 0:00:02]} 60. Kd6 {[%emt 0:00:00]} Rd2+ {[%emt 0:00:04]} 61. Ke7 {[%emt 0:00:00]} Kg8 {[%emt 0:03:09]} 62. e6 {[%emt 0:00:00]} Rd3 {[%emt 0:00:40]} 63. Rg6+ {[%emt 0:00:00]} Kh7 {[%emt 0:00:27]} 64. Kf7 {[%emt 0:00:00]} Re3 {[%emt 0:02:22]} 65. Rf6 {[%emt 0:00:00]} Ra3 {[%emt 0:01:49]} 66. e7 {[%emt 0:00:00]} Ra7 {[%emt 0:00:01]} 67. Kf8 {[%emt 0:00:00]} Kh8 {[%emt 0:00:51]} 68. e8=Q {[%emt 0:00:00]} Rb7 {[%emt 0:02:26]} 69. Rb6 {[%emt 0:02:15]} Ra7 {[%emt 0:02:38]} 70. Qe5+ {[%emt 0:00:40]} Kh7 {[%emt 0:00:02]} 71. Qf5+ {[%emt 0:00:19]} Kh8 {[%emt 0:00:24]} 72. Qf6+ {[%emt 0:00:10]} Kh7 {[%emt 0:00:11]} 73. Qg6+ {[%emt 0:00:09]} 1-0

[Event "SVK-ch Open 2018"]
[Site "Banska Stiavnica"]
[Date "2018.07.09"]
[Round "3"]
[White "Balogh, Peter"]
[Black "Mandak, Miroslav"]
[Result "0-1"]
[ECO "C17"]
[WhiteElo "2097"]
[BlackElo "1989"]
[Annotator "NA"]
[PlyCount "72"]
[EventDate "2018.07.07"]
[EventType "swiss"]
[EventCountry "SVK"]
[SourceTitle "playchess.com"]
[Source "ChessBase"]
[SourceQuality "1"]
[TimeControl "40/5400+30:1800+30"]

1. e4 {[%emt 0:05:33]} e6 {[%emt 0:00:13]} 2. d4 {[%emt 0:00:31]} d5 {[%emt 0:00:08]} 3. Nc3 {[%emt 0:00:05]} Bb4 {[%emt 0:00:49]} 4. e5 {[%emt 0:00:07]} c5 {[%emt 0:01:02]} 5. Qg4 {[%emt 0:00:13]} Kf8 {[%emt 0:01:35]} 6. dxc5 {[%emt 0:00:10]} Nc6 {[%emt 0:02:18]} 7. Bd2 {[%emt 0:00:16]} Bxc5 {[%emt 0:01:31]} 8. Nf3 {[%emt 0:01:02]} a6 {[%emt 0:01:38]} 9. Bd3 {[%emt 0:04:21]} Nge7 {[%emt 0:03:34]} 10. a3 {[%emt 0:03:53]} Qc7 $11 {[%emt 0:07:16]} 11. Qh5 {[%emt 0:03:44]} Kg8 {[%emt 0:11:46]} 12. O-O {[%emt 0:02:15]} Ng6 {[%emt 0:04:45]} 13. Rae1 {[%emt 0:02:05]} b5 {[%emt 0:02:48]} 14. h4 {[%emt 0:03:22]} Be7 {[%emt 0:07:21]} 15. Bg5 {[%emt 0:06:01]} b4 {[%emt 0:03:20]} 16. Bxe7 {[%emt 0:06:57]} Qxe7 {[%emt 0:02:20]} 17. Ne2 {[%emt 0:01:30]} a5 {[%emt 0:08:03]} 18. Ng3 {[%emt 0:12:23]} Ba6 {[%emt 0:03:23]} 19. Bxa6 {[%emt 0:03:04]} Rxa6 {[%emt 0:00:08]} 20. Qg4 {[%emt 0:01:28]} h6 {[%emt 0:09:12]} 21. Re3 {[%emt 0:03:09]} Kh7 {[%emt 0:03:46]} 22. h5 {[%emt 0:03:02]} Nf8 {[%emt 0:00:11]} 23. Nd4 {[%emt 0:04:20]} Nd7 {[%emt 0:01:43]} 24. Nxc6 {[%emt 0:02:30]} Rxc6 {[%emt 0:00:34]} 25. Qd4 {[%emt 0:03:23]} Rhc8 {[%emt 0:01:06]} 26. f4 {[%emt 0:01:38]} Kg8 {[%emt 0:03:17]} 27. f5 {[%emt 0:02:55]} Rc4 {[%emt 0:05:59]} 28. Qd3 {[%emt 0:04:46]} Qg5 {[%emt 0:03:11]} 29. fxe6 {[%emt 0:06:33]} fxe6 {[%emt 0:00:40]} 30. Nf5 {[%emt 0:10:52]} exf5 {[%emt 0:03:54]} 31. Rxf5 {[%emt 0:01:39]} Qe7 {[%emt 0:02:04]} 32. Qxd5+ {[%emt 0:00:05]} Kh8 {[%emt 0:00:40]} 33. Rf7 {[%emt 0:01:11]} Qg5 {[%emt 0:03:07]} 34. Ref3 {[%emt 0:00:45]} Rxc2 {[%emt 0:00:46]} 35. R3f5 {[%emt 0:00:38]} Rc1+ {[%emt 0:00:29]} 36. Rf1 {[%emt 0:00:18]} Nxe5 {[%emt 0:00:43]} 0-1

[Event "SVK-ch Open 2018"]
[Site "Banska Stiavnica"]
[Date "2018.07.09"]
[Round "3"]
[White "Lukac, Roman"]
[Black "Sandor, Martin"]
[Result "1/2-1/2"]
[ECO "B90"]
[WhiteElo "2089"]
[BlackElo "1968"]
[Annotator "NA"]
[PlyCount "65"]
[EventDate "2018.07.07"]
[EventType "swiss"]
[EventCountry "SVK"]
[SourceTitle "playchess.com"]
[Source "ChessBase"]
[SourceQuality "1"]
[TimeControl "40/5400+30:1800+30"]

1. e4 {[%emt 0:13:12]} c5 {[%emt 0:00:00]} 2. Nf3 {[%emt 0:00:16]} d6 {[%emt 0:00:00]} 3. Nc3 {[%emt 0:00:13]} a6 {[%emt 0:03:02]} 4. d4 {[%emt 0:00:40]} cxd4 {[%emt 0:00:05]} 5. Nxd4 {[%emt 0:00:06]} Nf6 {[%emt 0:00:07]} 6. Bc4 {[%emt 0:00:50]} e6 {[%emt 0:00:14]} 7. Qe2 {[%emt 0:01:59]} Be7 {[%emt 0:00:19]} 8. Bb3 {[%emt 0:06:18]} b5 {[%emt 0:01:23]} 9. a3 {[%emt 0:03:35]} Bd7 {[%emt 0:01:25]} 10. g4 $15 {[%emt 0:04:50]} Nc6 {[%emt 0:02:39]} 11. Nxc6 {[%emt 0:06:31]} Bxc6 {[%emt 0:03:17]} 12. g5 {[%emt 0:01:22]} Nd7 {[%emt 0:00:06]} 13. Rg1 {[%emt 0:00:06]} Nc5 {[%emt 0:04:48]} 14. Ba2 {[%emt 0:00:26]} Qc7 {[%emt 0:02:06]} 15. f3 {[%emt 0:12:12]} Qb6 {[%emt 0:19:41]} 16. Rg4 {[%emt 0:13:10]} a5 {[%emt 0:09:16]} 17. b4 {[%emt 0:09:37]} axb4 {[%emt 0:03:33]} 18. axb4 {[%emt 0:00:13]} Na4 {[%emt 0:01:18]} 19. Be3 {[%emt 0:08:49]} Qb7 {[%emt 0:19:31]} 20. Nd1 {[%emt 0:04:10]} Nb6 {[%emt 0:06:19]} 21. Qf2 {[%emt 0:03:58]} Nc4 {[%emt 0:00:34]} 22. Bd4 {[%emt 0:00:13]} e5 {[%emt 0:02:34]} 23. Bc3 {[%emt 0:00:13]} Bd7 {[%emt 0:00:21]} 24. Rg2 {[%emt 0:01:35]} Be6 {[%emt 0:00:33]} 25. Bb3 {[%emt 0:00:32]} Rxa1 {[%emt 0:01:17]} 26. Bxa1 {[%emt 0:00:02]} Qa6 {[%emt 0:00:51]} 27. Bc3 {[%emt 0:00:32]} Bd8 {[%emt 0:02:01]} 28. f4 {[%emt 0:00:58]} Qc6 {[%emt 0:05:00]} 29. Qf3 {[%emt 0:02:02]} Bf5 {[%emt 0:00:30]} 30. Re2 {[%emt 0:00:41]} h5 {[%emt 0:00:43]} 31. h3 {[%emt 0:01:46]} Be6 {[%emt 0:03:55]} 32. f5 {[%emt 0:00:34]} Bc8 {[%emt 0:00:19]} 33. h4 {[%emt 0:00:11]} 1/2-1/2

[Event "SVK-ch Open 2018"]
[Site "Banska Stiavnica"]
[Date "2018.07.09"]
[Round "3"]
[White "Treybal, Dusan"]
[Black "Ucekajova, Veronika"]
[Result "0-1"]
[ECO "B01"]
[WhiteElo "2081"]
[BlackElo "1757"]
[Annotator "NA"]
[PlyCount "48"]
[EventDate "2018.07.07"]
[EventType "swiss"]
[EventCountry "SVK"]
[SourceTitle "playchess.com"]
[Source "ChessBase"]
[SourceQuality "1"]
[TimeControl "40/5400+30:1800+30"]

1. e4 {[%emt 0:00:00]} d5 {[%emt 0:00:00]} 2. exd5 {[%emt 0:00:00]} Qxd5 {[%emt 0:00:00]} 3. Nc3 {[%emt 0:00:11]} Qd6 {[%emt 0:00:00]} 4. Nf3 {[%emt 0:01:45]} Nf6 {[%emt 0:00:23]} 5. d4 {[%emt 0:01:10]} a6 {[%emt 0:00:25]} 6. g3 {[%emt 0:01:12]} Bg4 {[%emt 0:02:05]} 7. Bg2 {[%emt 0:00:27]} Nc6 {[%emt 0:01:07]} 8. Bf4 {[%emt 0:05:51]} Qb4 {[%emt 0:05:34]} 9. O-O {[%emt 0:01:05]} O-O-O {[%emt 0:09:34]} 10. h3 {[%emt 0:03:05]} Bh5 {[%emt 0:11:22]} 11. g4 {[%emt 0:08:10]} Bg6 {[%emt 0:00:33]} 12. Qe1 {[%emt 0:07:24]} Bxc2 {[%emt 0:13:42]} 13. Rc1 {[%emt 0:05:07]} Bd3 {[%emt 0:20:59]} 14. Ne5 {[%emt 0:01:33]} Qxd4 {[%emt 0:03:28]} 15. Nxc6 {[%emt 0:03:30]} bxc6 {[%emt 0:01:38]} 16. Be5 {[%emt 0:04:34]} Qa7 {[%emt 0:04:50]} 17. Bxc6 {[%emt 0:02:33]} e6 {[%emt 0:02:05]} 18. Na4 {[%emt 0:03:05]} Bd6 {[%emt 0:01:57]} 19. Qa5 {[%emt 0:08:18]} Bxf1 {[%emt 0:02:26]} 20. Kxf1 {[%emt 0:00:17]} Bxe5 {[%emt 0:04:54]} 21. Qxe5 {[%emt 0:00:18]} Rd2 {[%emt 0:00:46]} 22. Qf4 {[%emt 0:01:09]} Rhd8 {[%emt 0:00:31]} 23. Rc4 {[%emt 0:05:45]} R8d4 {[%emt 0:01:18]} 24. Qe3 {[%emt 0:00:54]} R2d3 {[%emt 0:01:44]} 0-1

[Event "SVK-ch Open 2018"]
[Site "Banska Stiavnica"]
[Date "2018.07.09"]
[Round "3"]
[White "Brhel, Jan"]
[Black "Popovic, Martin"]
[Result "1-0"]
[ECO "D10"]
[WhiteElo "2070"]
[BlackElo "1846"]
[Annotator "NA"]
[PlyCount "51"]
[EventDate "2018.07.07"]
[EventType "swiss"]
[EventCountry "SVK"]
[SourceTitle "playchess.com"]
[Source "ChessBase"]
[SourceQuality "1"]
[TimeControl "40/5400+30:1800+30"]

1. d4 {[%emt 0:00:00]} d5 {[%emt 0:00:00]} 2. c4 {[%emt 0:00:00]} c6 {[%emt 0:00:00]} 3. cxd5 {[%emt 0:00:00]} cxd5 {[%emt 0:00:00]} 4. Nc3 {[%emt 0:00:00]} Nf6 {[%emt 0:00:06]} 5. Bf4 {[%emt 0:00:08]} a6 {[%emt 0:01:03]} 6. e3 {[%emt 0:00:39]} Nc6 {[%emt 0:00:29]} 7. Bd3 {[%emt 0:00:28]} e6 {[%emt 0:00:48]} 8. Nge2 {[%emt 0:00:51]} Bd6 {[%emt 0:04:14]} 9. Bg5 {[%emt 0:01:26]} O-O {[%emt 0:03:40]} 10. h3 {[%emt 0:00:12]} b5 {[%emt 0:03:57]} 11. O-O {[%emt 0:01:13]} Be7 {[%emt 0:07:52]} 12. Rc1 {[%emt 0:05:31]} Bb7 {[%emt 0:00:37]} 13. Bb1 {[%emt 0:00:14]} Ne8 $11 {[%emt 0:05:45]} 14. Bxe7 {[%emt 0:10:59]} Qxe7 {[%emt 0:00:53]} 15. e4 {[%emt 0:00:37]} dxe4 {[%emt 0:09:04]} 16. Nxe4 {[%emt 0:00:13]} Nd6 {[%emt 0:03:28]} 17. Qd3 {[%emt 0:05:03]} Nxe4 {[%emt 0:07:41]} 18. Qxe4 {[%emt 0:00:16]} f5 {[%emt 0:00:09]} 19. Qe3 {[%emt 0:01:23]} e5 {[%emt 0:05:37]} 20. Rfd1 {[%emt 0:03:18]} exd4 {[%emt 0:10:39]} 21. Qxe7 {[%emt 0:01:01]} Nxe7 {[%emt 0:00:20]} 22. Rc7 {[%emt 0:00:25]} Bxg2 {[%emt 0:03:43]} 23. Kxg2 {[%emt 0:00:16]} Nd5 {[%emt 0:00:12]} 24. Rd7 {[%emt 0:01:08]} Rae8 {[%emt 0:00:13]} 25. Nxd4 {[%emt 0:07:46]} Nf4+ {[%emt 0:02:02]} 26. Kf3 {[%emt 0:05:10]} 1-0

[Event "SVK-ch Open 2018"]
[Site "Banska Stiavnica"]
[Date "2018.07.09"]
[Round "3"]
[White "Odler, Daniel"]
[Black "Brnusak, Andrej"]
[Result "1-0"]
[ECO "B09"]
[WhiteElo "2067"]
[BlackElo "1866"]
[Annotator "NA"]
[PlyCount "57"]
[EventDate "2018.07.07"]
[EventType "swiss"]
[EventCountry "SVK"]
[SourceTitle "playchess.com"]
[Source "ChessBase"]
[SourceQuality "1"]
[TimeControl "40/5400+30:1800+30"]

1. d4 {[%emt 0:00:00]} Nf6 {[%emt 0:00:34]} 2. Nc3 {[%emt 0:00:00]} g6 {[%emt 0:00:40]} 3. e4 {[%emt 0:00:00]} d6 {[%emt 0:00:37]} 4. f4 {[%emt 0:00:18]} Bg7 {[%emt 0:01:44]} 5. Bc4 {[%emt 0:00:08]} O-O {[%emt 0:01:24]} 6. e5 {[%emt 0:00:07]} dxe5 {[%emt 0:00:55]} 7. dxe5 {[%emt 0:00:08]} Qxd1+ {[%emt 0:02:31]} 8. Kxd1 {[%emt 0:00:30]} Ng4 {[%emt 0:02:34]} 9. Ke2 {[%emt 0:01:34]} Nc6 {[%emt 0:01:55]} 10. Nf3 {[%emt 0:01:30]} Rd8 {[%emt 0:04:38]} 11. h3 {[%emt 0:00:57]} Nh6 {[%emt 0:00:16]} 12. g4 {[%emt 0:00:27]} a6 {[%emt 0:03:35]} 13. Be3 {[%emt 0:01:30]} b5 {[%emt 0:01:30]} 14. Bb3 {[%emt 0:03:20]} Bb7 $16 {[%emt 0:01:28]} 15. Rhd1 {[%emt 0:02:20]} e6 {[%emt 0:02:16]} 16. Ng5 {[%emt 0:08:41]} Bf8 {[%emt 0:06:01]} 17. Nce4 {[%emt 0:02:56]} Na5 {[%emt 0:03:38]} 18. Nf6+ {[%emt 0:06:22]} Kg7 {[%emt 0:01:20]} 19. Rxd8 {[%emt 0:04:50]} Rxd8 {[%emt 0:00:09]} 20. Bxe6 Be7 {[%emt 0:02:35]} 21. Bb3 {[%emt 0:07:51]} c5 {[%emt 0:02:23]} 22. c3 {[%emt 0:02:11]} c4 {[%emt 0:04:35]} 23. Bc2 {[%emt 0:03:05]} Nc6 {[%emt 0:05:37]} 24. Bb6 {[%emt 0:05:30]} Rh8 {[%emt 0:03:31]} 25. Rd1 {[%emt 0:02:46]} Bxf6 {[%emt 0:03:11]} 26. exf6+ {[%emt 0:00:09]} Kxf6 {[%emt 0:00:07]} 27. Rd7 {[%emt 0:10:27]} Ba8 {[%emt 0:00:14]} 28. Be4 {[%emt 0:02:16]} Kg7 {[%emt 0:02:05]} 29. Ne6+ {[%emt 0:03:20]} 1-0

[Event "SVK-ch Open 2018"]
[Site "Banska Stiavnica"]
[Date "2018.07.09"]
[Round "3"]
[White "Bojda, Lubomir"]
[Black "Talla, Vladimir"]
[Result "0-1"]
[ECO "B90"]
[WhiteElo "2064"]
[BlackElo "2402"]
[Annotator "NA"]
[PlyCount "42"]
[EventDate "2018.07.07"]
[EventType "swiss"]
[EventCountry "SVK"]
[SourceTitle "playchess.com"]
[Source "ChessBase"]
[SourceQuality "1"]
[TimeControl "40/5400+30:1800+30"]

1. e4 {[%emt 0:08:52]} c5 {[%emt 0:00:00]} 2. Nf3 {[%emt 0:00:06]} d6 {[%emt 0:00:00]} 3. Nc3 {[%emt 0:00:48]} a6 {[%emt 0:01:55]} 4. d4 {[%emt 0:02:05]} cxd4 {[%emt 0:00:04]} 5. Nxd4 {[%emt 0:00:07]} Nf6 {[%emt 0:00:02]} 6. Be3 {[%emt 0:03:50]} e6 {[%emt 0:01:14]} 7. h3 {[%emt 0:00:14]} b5 {[%emt 0:00:41]} 8. a3 {[%emt 0:07:48]} Bb7 {[%emt 0:04:41] LiveBook: 6 Games} 9. Bd3 {[%emt 0:02:21]} Nbd7 {[%emt 0:02:52]} 10. Nb3 {[%emt 0:05:09]} Be7 {[%emt 0:03:57]} 11. Qe2 {[%emt 0:01:17]} Rc8 {[%emt 0:00:43]} 12. f4 {[%emt 0:04:13]} O-O {[%emt 0:02:39]} 13. O-O {[%emt 0:04:48]} e5 {[%emt 0:12:13]} 14. Nd5 {[%emt 0:02:59]} Bxd5 {[%emt 0:02:29]} 15. fxe5 {[%emt 0:06:16]} Nxe4 $19 {[%emt 0:11:52]} 16. exd6 {[%emt 0:03:19]} Bxd6 {[%emt 0:06:49]} 17. Rad1 {[%emt 0:05:12]} Qc7 {[%emt 0:04:27]} 18. Bxe4 {[%emt 0:07:01]} Bxe4 {[%emt 0:00:28]} 19. Rd4 {[%emt 0:01:10]} f5 {[%emt 0:01:11]} 20. Rfd1 {[%emt 0:01:22]} Bh2+ {[%emt 0:00:09]} 21. Kh1 {[%emt 0:00:31]} Nf6 {[%emt 0:00:23]} 0-1

[Event "SVK-ch Open 2018"]
[Site "Banska Stiavnica"]
[Date "2018.07.09"]
[Round "3"]
[White "Bartek, Ladislav"]
[Black "Zatko, Gregor"]
[Result "0-1"]
[ECO "B06"]
[WhiteElo "2049"]
[BlackElo "2144"]
[Annotator "NA"]
[PlyCount "34"]
[EventDate "2018.07.07"]
[EventType "swiss"]
[EventCountry "SVK"]
[SourceTitle "playchess.com"]
[Source "ChessBase"]
[SourceQuality "1"]
[TimeControl "40/5400+30:1800+30"]

1. e4 {[%emt 0:00:00]} g6 {[%emt 0:00:00]} 2. d4 Bg7 {[%emt 0:00:00]} 3. Nc3 {[%emt 0:00:00]} d6 {[%emt 0:00:00]} 4. Be3 {[%emt 0:00:00]} Nd7 {[%emt 0:00:04] LiveBook: 268 Games} 5. Qd2 {[%emt 0:00:10]} a6 {[%emt 0:00:37]} 6. O-O-O {[%emt 0:00:31]} b5 {[%emt 0:00:25]} 7. Bd3 {[%emt 0:01:15]} c5 {[%emt 0:06:09]} 8. dxc5 {[%emt 0:00:14]} dxc5 {[%emt 0:04:56]} 9. Kb1 {[%emt 0:03:52]} Ngf6 $14 {[%emt 0:17:58]} (9... Bb7 $11) 10. e5 {[%emt 0:03:14]} Nxe5 {[%emt 0:10:25]} 11. Bxb5+ {[%emt 0:00:25]} Bd7 {[%emt 0:05:28]} 12. Bf4 {[%emt 0:05:27]} axb5 {[%emt 0:02:34]} 13. Bxe5 {[%emt 0:00:17]} Qc8 {[%emt 0:08:38]} 14. Nd5 {[%emt 0:05:18]} Nxd5 {[%emt 0:01:27]} 15. Bxg7 {[%emt 0:00:09]} Rg8 {[%emt 0:00:56]} 16. c4 {[%emt 0:13:20]} Bf5+ {[%emt 0:00:49]} 17. Kc1 {[%emt 0:01:25]} Nb4 {[%emt 0:06:48]} 0-1

[Event "SVK-ch Open 2018"]
[Site "Banska Stiavnica"]
[Date "2018.07.09"]
[Round "3"]
[White "Posa, Norbert"]
[Black "Urhegyi, Marton"]
[Result "0-1"]
[ECO "D00"]
[WhiteElo "2036"]
[BlackElo "2303"]
[Annotator "NA"]
[PlyCount "71"]
[EventDate "2018.07.07"]
[EventType "swiss"]
[EventCountry "SVK"]
[SourceTitle "playchess.com"]
[Source "ChessBase"]
[SourceQuality "1"]
[TimeControl "40/5400+30:1800+30"]

1. d4 {[%emt 0:00:00]} d5 {[%emt 0:00:00]} 2. Bf4 {[%emt 0:00:00]} Nf6 {[%emt 0:00:00]} 3. e3 {[%emt 0:00:45]} c5 {[%emt 0:00:25]} 4. c3 {[%emt 0:06:35]} Nc6 {[%emt 0:00:58]} 5. Bd3 {[%emt 0:02:30]} Qb6 {[%emt 0:10:06]} 6. Qc1 {[%emt 0:04:25]} Nh5 {[%emt 0:04:51]} (6... cxd4 $15 7. cxd4 Nb4) 7. Ne2 {[%emt 0:05:18]} Nxf4 {[%emt 0:02:17]} 8. Nxf4 {[%emt 0:00:05]} e6 {[%emt 0:01:42]} 9. Nd2 {[%emt 0:01:56]} Bd6 {[%emt 0:01:14]} 10. g3 {[%emt 0:07:04]} cxd4 {[%emt 0:05:09]} 11. exd4 {[%emt 0:04:20]} Bxf4 {[%emt 0:11:48]} 12. gxf4 $11 {[%emt 0:00:05]} Ne7 {[%emt 0:01:55]} 13. Nf3 {[%emt 0:01:14]} Bd7 {[%emt 0:11:32]} 14. Ne5 {[%emt 0:06:16]} Bb5 {[%emt 0:04:37]} 15. Bxb5+ {[%emt 0:01:49]} Qxb5 {[%emt 0:00:06]} 16. Qd2 {[%emt 0:00:09]} Nf5 {[%emt 0:03:26]} 17. Nd3 {[%emt 0:05:08]} Rc8 {[%emt 0:03:15]} 18. O-O {[%emt 0:05:36]} Qa5 {[%emt 0:04:17]} 19. Qe2 {[%emt 0:08:44]} O-O {[%emt 0:02:31]} 20. Kh1 {[%emt 0:04:04]} Qc7 {[%emt 0:02:34]} 21. Rg1 {[%emt 0:00:58]} b5 {[%emt 0:03:21]} 22. Qe5 {[%emt 0:01:33]} a5 {[%emt 0:02:19]} 23. a3 {[%emt 0:00:14]} Qe7 {[%emt 0:04:38]} 24. Rg4 {[%emt 0:00:35]} Rc4 {[%emt 0:01:48]} 25. Rag1 {[%emt 0:06:47]} g6 {[%emt 0:00:44]} 26. Qe2 {[%emt 0:01:14]} Rb8 {[%emt 0:02:29]} 27. Rg5 {[%emt 0:01:22]} Qf6 {[%emt 0:04:08]} 28. Ne5 {[%emt 0:04:07]} Rc7 {[%emt 0:00:43]} 29. Nd3 {[%emt 0:04:23]} b4 {[%emt 0:02:54]} 30. axb4 {[%emt 0:00:24]} axb4 {[%emt 0:00:06]} 31. Nxb4 {[%emt 0:02:18]} Nxd4 {[%emt 0:01:54]} 32. Qd3 {[%emt 0:04:58]} Qxf4 {[%emt 0:03:35]} 33. Na6 {[%emt 0:00:09]} Nf3 {[%emt 0:00:34]} 34. R5g3 {[%emt 0:01:17]} Nxg1 {[%emt 0:02:11]} 35. Nxb8 {[%emt 0:00:05]} Qxf2 {[%emt 0:01:57]} 36. Rg2 {[%emt 0:04:01]} 0-1

[Event "SVK-ch Open 2018"]
[Site "Banska Stiavnica"]
[Date "2018.07.09"]
[Round "3"]
[White "Toma, Rudolf"]
[Black "Weis, Dusan"]
[Result "1-0"]
[ECO "A85"]
[WhiteElo "2018"]
[BlackElo "1818"]
[Annotator "NA"]
[PlyCount "73"]
[EventDate "2018.07.07"]
[EventType "swiss"]
[EventCountry "SVK"]
[SourceTitle "playchess.com"]
[Source "ChessBase"]
[SourceQuality "1"]
[TimeControl "40/5400+30:1800+30"]

1. d4 {[%emt 0:00:00]} f5 {[%emt 0:00:00]} 2. c4 {[%emt 0:00:00]} Nf6 {[%emt 0:00:00]} 3. Nc3 {[%emt 0:00:13]} e6 {[%emt 0:00:01]} 4. g3 {[%emt 0:00:09]} c6 {[%emt 0:00:16]} 5. Bg2 {[%emt 0:00:10]} d5 {[%emt 0:00:07]} 6. cxd5 {[%emt 0:00:51]} cxd5 {[%emt 0:00:11] A90: Dutch Defence: Miscellaneous and Modern Stonewall (with ...Bd6)} 7. Bg5 {[%emt 0:00:12]} (7. Nh3 Nc6 8. O-O Be7 9. a3 O-O 10. b4 Bd7 11. Bb2 Rc8 12. Rc1 {½-½ (12) Caetano,H (2215)-Gonzalez,B (2262) Curitiba 2015}) 7... Bd6 {[%emt 0:01:01]} 8. e3 $146 {[%emt 0:00:14]} ({Predecessor:} 8. f4 O-O 9. Nf3 h6 10. Bh4 Qb6 11. Qc2 Ne4 12. O-O Nc6 13. e3 Be7 14. Bxe7 Nxe7 {1-0 (48) Brown,G (1685)-Churchill,S Kapuskasing 2004}) 8... O-O {[%emt 0:00:28]} 9. Nge2 {[%emt 0:00:15]} Bd7 {[%emt 0:01:20]} 10. O-O {[%emt 0:00:36]} Be8 {[%emt 0:01:21]} 11. Nxd5 {[%emt 0:02:13]} Bc6 {[%emt 0:02:30]} 12. Ndf4 {[%emt 0:01:43]} Qd7 {[%emt 0:01:10]} 13. Bxf6 {[%emt 0:00:48]} Rxf6 {[%emt 0:00:22]} 14. d5 {[%emt 0:01:10]} exd5 {[%emt 0:00:51]} 15. Nxd5 {[%emt 0:00:07]} Rh6 {[%emt 0:01:57]} 16. Qb3 {[%emt 0:00:22]} Kh8 {[%emt 0:00:39]} 17. Nd4 {[%emt 0:02:00]} Na6 {[%emt 0:01:58]} 18. Qd3 {[%emt 0:02:25]} Rf8 {[%emt 0:11:32]} 19. Nxc6 {[%emt 0:01:16]} Nc5 {[%emt 0:00:32]} 20. Qc2 {[%emt 0:01:32]} bxc6 $18 {[%emt 0:01:16]} 21. Nf4 {[%emt 0:03:33]} Qe8 {[%emt 0:03:28]} 22. Rac1 {[%emt 0:00:58]} g5 {[%emt 0:06:23]} 23. Ne2 {[%emt 0:03:41]} Qh5 {[%emt 0:04:05]} 24. h3 {[%emt 0:01:34]} Ne4 {[%emt 0:01:46]} 25. Rfd1 {[%emt 0:03:54]} Be5 {[%emt 0:29:26]} 26. Nd4 {[%emt 0:25:42]} g4 {[%emt 0:22:31]} 27. Bxe4 {[%emt 0:14:42]} fxe4 {[%emt 0:01:36]} 28. h4 {[%emt 0:00:08]} Qf7 {[%emt 0:01:43]} 29. Qe2 {[%emt 0:02:10]} Rf6 {[%emt 0:00:36]} 30. Rc2 {[%emt 0:01:46]} c5 {[%emt 0:00:56]} 31. Nb3 {[%emt 0:02:05]} Rf3 {[%emt 0:00:15]} 32. Kg2 {[%emt 0:00:39]} Qc7 {[%emt 0:00:43]} 33. Qe1 {[%emt 0:01:44]} R8f6 {[%emt 0:01:42]} 34. Nd4 {[%emt 0:04:33]} Bxg3 {[%emt 0:02:06]} 35. fxg3 {[%emt 0:00:48]} Qe5 {[%emt 0:01:58]} 36. Nxf3 {[%emt 0:02:29]} Rxf3 {[%emt 0:00:36]} 37. Qc3 {[%emt 0:01:05]} 1-0